{"text_format":"1","workbook":"xlsx","n_sheets":5,"sheets":["١ - إدارة الوثيقة","٢ - التعليمات","٣ - التقييم الذاتي","٤ - التقرير","٥ - قائمة الأجوبة"],"not_rendered":{"charts":0,"images":3,"macros":1,"external_links":0,"defined_names":0,"comments":0,"pivot_tables":0},"unopened":[],"bounds":{"document_bytes":16777216,"sheet_cells":100000,"rows_first":2000,"rows_last":500,"rows_between":2000,"halvings":0,"cell_chars":16384,"cell_head_chars":4096},"cells_cut":0,"cells_raw":0,"read":"whole","date_system":"1900"}

{"sheet":"١ - إدارة الوثيقة","index":0,"n_rows":21,"n_cols":4,"rows_kept":21,"cut":false,"hidden":false,"merged":[[20,1,20,4],[19,1,19,2],[19,3,19,4],[15,1,15,2],[15,3,15,4],[16,1,16,2],[16,3,16,4]]}
[]
[null,"إدارة الوثيقة"]
[null,"عنوان الوثيقة","التقييم الذاتي لحماية خصوصية البيانات"]
[null,"نوع الوثيقة","وثيقة تقييم"]
[null,"الاصدار",2]
[null,"الرقم المرجعي للوثيقة","PDPPL-02050701A"]
[null,"مالك الوثيقة","شؤون الحوكمة والضمان السيبراني الوطني"]
[null,"تصنيف الوثيقة","خارجي"]
[]
[null,"تحديثات الوثيقة"]
[null,"رقم الاصدار","الوصف ","التاريخ"]
[null,1,"الوثيقة المنشورة ذات الاصدار ١.٠","أغسطس ٢٠٢٠"]
[null,2,"الوثيقة المنشورة ذات الاصدار ٢.٠","سبتمبر ٢٠٢٢"]
[]
[null,"الوثائق ذات الصلة"]
[null,"الرقم المرجعي للوثيقة",null,"عنوان الوثيقة"]
[null,"لا يوجد",null,"لا يوجد"]
[]
[]
[null,"ملاحظات داخلية"]
[null,"تتكون هذه الوثيقة من 5 صفحات: \n١ - ورقة التحكم - شؤون الحوكمة والضمان السيبراني الوطني: تعمل كورقة تحكم بالإصدار للمساعدة في مراقبة التغييرات والتحديثات.\n٢ - التعليمات - المستخدم النهائي: دليل للمساعدة في فهم الغرض من هذه الوثيقة وكيفية استخدامه.\n٣ - التقييم الذاتي لحماية البيانات - المستخدم النهائي: هذه هي صفحة التقييم. قبل إجراء التقييم، تأكد من مسح جميع الإجابات في العمود E ، ثم تابع الإجابة على الأسئلة عن طريق تحديد الإجابة الأكثر صلة بمؤسستك.\n٤ - تقرير ملخص - المستخدم النهائي: عند إكمال التقييم في الورقة ٣، سيوفر لك هذا ملخصًا للتوصيات عالية المستوى بناءً على إجاباتك.\n٥ - ورقة مرجعية للإجابة - شؤون الحوكمة والضمان السيبراني الوطني: وهي ورقة البيانات المستخدمة للحفاظ على المعلومات الواردة في الورقة ٣ و ٤، وتتكون من جميع الأسئلة والإجابات ، يرجى استخدام هذه الورقة لتحرير التقييم إذا لزم الأمر."]

{"sheet":"٢ - التعليمات","index":1,"n_rows":17,"n_cols":3,"rows_kept":17,"cut":false,"hidden":false,"merged":[[14,2,14,4],[15,1,15,4],[16,1,16,4],[3,1,3,4],[4,1,4,4],[5,1,5,4],[6,1,6,4],[7,1,7,4],[10,1,10,4],[8,2,8,4],[9,2,9,4],[11,1,11,4],[12,2,12,4],[13,2,13,4]]}
[]
[]
[]
[null,"المقدمة"]
[null,"ستكون قائمة التقييم الذاتي هذه مفيدة للغاية للمؤسسات الصغيرة والمتوسطة الحجم في جميع القطاعات. هذا التقييم الذاتي يعمل كأداة توجيهية تمكن المؤسسات من تحديد مجالات التركيز الرئيسية ضد مفاهيم حماية خصوصية البيانات التي يتم تناولها في قانون حماية خصوصية البيانات الشخصية (PDPPL)، وتوجهم لتطوير معارفهم نحو المبادئ التوجيهية الرئيسية ذات الصلة وتطور نضج برنامج خصوصية البيانات الخاص بهم لتعزيز سمعتهم وزيادة ثقة عملائهم بهم وتساعدهم بإدارة مخاطر حماية خصوصية البيانات."]
[null,"التعليمات"]
[null,"١ - لإجراء تقييم ذاتي لامتثال قانون حماية خصوصية البيانات الشخصية (PDPPL) لمؤسستكم، انقر فوق الزر \"بدء التقييم الذاتي\" أعلاه.\nيجب عليكم تحديد خيار واحد فقط لكل سؤال في العمود الأصفر ضمن التقييم الذاتي. إذا كنتم ترغبون في إعادة تشغيل التقييم الذاتي، فما عليكم سوى النقر فوق الزر \"إعادة تشغيل التقييم الذاتي\" الذي سيمسح إجاباتكم . قبل إجراء التقييم،يجب التأكد من مسح جميع الإجابات في العمود E، ثم متباعة الإجابة على الأسئلة عن طريق تحديد الإجابة الأكثر صلة بمؤسستكم.\n٢ - بمجرد اكتمال قائمة التحقق من التقييم الذاتي، انقر فوق الزر \"إعداد تقرير\" للحصول على ملخص عالي المستوى للاعتبارات الأولية التي يجب إجراؤها استنادًا إلى الإجابات المقدمة في قائمة المراجعة عند تخطيط الإجراءات لزيادة مستوى نضج مؤسستكم فيما يخص الامتثال لحماية خصوصية البيانات. يجب التنوية أن استكمال الاعتبارات الموصى بها في التقرير الذي تم إعداده لن يضمن الامتثال من جانب المؤسسة. المؤسسات مسؤولة عن امتثالها الخاص ويجب أن تشير إلى المبادئ التوجيهية المرجعية  لكل سؤال للحصول على معلومات حول كل موضوع إلى جانب قانون حماية خصوصية البيانات الشخصية (PDPPL)، وجميع المبادئ التوجيهية الصادرة عن شؤون الحوكمة والضمان السيبراني الوطني، وأي قرارات وزارية ذات صلة."]
[null,"المرجع للون العمود"]
[null,null,"تتكون عناوين الأعمدة المشار إليها بهذا اللون معنية للتعديل."]
[null,null,"عناوين الأعمدة المشار إليها بهذا اللون ليست معنية للتعديل."]
[null,"فهم نتائجكم"]
[null,"عند إكمال التقييم والنقر على \"إنتاج تقرير\"، سيتم تزويد التقرير بنظرة عامة على نتائجكم بناءً على إجاباتكم. سيتضمن أحد التصنيفات التالية:"]
[null,"أخضر","استنادًا إلى إجاباتك، لدى مؤسستك برنامج ناضج لحماية خصوصية البيانات على الرغم من أن بعض الإجراءات قد لا تزال مطلوبة لتحقيق مستوى نضج عالي للامتثال. \nيجب التنويه أنه لا يزال يتعين عليكم السعي إلى تنفيذ برنامج كامل للامتثال لقانون حماية خصوصية البيانات الشخصية (PDPPL)، لأن هذا التقييم ليس بديلاً لقراءة وفهم والعمل وفقًا للمبادئ التوجيهية و قانون حماية خصوصية البيانات الشخصية (PDPPL)، المبادئ التوجيهية الخاصة بإدارة الامتثال وحماية البيانات، وأي ثرارات وزارية ذات صلة."]
[null,"أصفر","استنادًا إلى إجاباتكم، أبدت مؤسستكم مبادرة في إنشاء برنامج خصوصية البيانات ولكن لا تزال تفتقر إلى بعض الأنشطة الأساسية التي ستكون مطلوبة لإثبات الامتثال."]
[null,"الأحمر","استنادًا إلى إجاباتكم، ليس لدى مؤسستكم حاليًا برنامج حماية خصوصية بيانات مناسب وستحتاج إلى تخطيط وإجراء الأنشطة الموصى بها لتجنب تعطل الأعمال و / أو الغرامات التنظيمية الهامة و / أو المطالبات أو الشكاوى / الطلبات القانونية من الأفراد ."]
[null,"تنويه"]
[null," o قائمة المرجعية للتقييم الذاتي لا تضمن الامتثال لـقانون حماية خصوصية البيانات الشخصية (PDPPL) أو فعالية أي عناصر تحكم قائمة، وتهدف إلى تزويد المؤسسات بنقطة انطلاق لبرنامج الامتثال لماية خصوصية البيانات الخاصة بها. توفر الإجراءات المحتملة للمراقب إرشادات حول مجالات الامتثال التي يجب التركيز عليها والمبادئ التوجيهية التي يجب أن يطّلعوا إليها.\no المعلومات الواردة في قائمة المراجعة هذه ليست شاملة ويجب قراءتها بالاقتران مع قانون حماية خصوصية البيانات الشخصية (PDPPL)، والمبادئ التوجيهية الصادرة عن شؤون الحوكمة والضمان السيبراني الوطني، وأي قرارات وزارية ذات صلة.                                                                                                                                                                                                                                                           o ليست  الوكالة الوطنية للأمن السيبراني و / أو شؤون الحوكمة والضمان السيبراني الوطني مسؤولة عن أي أضرار تنشأ عن استخدام أو عدم القدرة على استخدام هذه المبادئ التوجيهية أو أي مادة واردة فيها، أو من أي إجراء أو قرار تم اتخاذه نتيجة لاستخدامها. قد يرغب أي شخص يستخدم هذا التقييم في استشارة مستشار قانوني و / أو سخص متخصص للحصول على مشورة قانونية أو غيرها فيما يتعلق بهذه المبادئ التوجيهية.\no أي تغييرات على أي جزء من هذا الوثيقة، بخلاف وضع علامة على الموضوعات في قائمة التقييم الذاتي المرجعية، قد تعني أن هذا الوثيقة لا تعمل على النحو المطلوب."]

{"sheet":"٣ - التقييم الذاتي","index":2,"n_rows":64,"n_cols":9,"rows_kept":64,"cut":false,"hidden":false,"merged":[[31,4,33,4],[25,1,27,1],[28,1,30,1],[28,2,30,2],[28,3,30,3],[28,4,30,4],[31,1,33,1],[25,4,27,4],[25,2,27,2],[25,3,27,3],[31,2,33,2],[31,3,33,3],[34,4,36,4],[37,1,39,1],[37,2,39,2],[37,4,39,4],[43,1,45,1],[43,2,45,2],[43,3,45,3],[40,1,42,1],[40,2,42,2],[40,3,42,3],[40,4,42,4],[43,4,45,4],[19,4,21,4],[22,4,24,4],[7,1,9,1],[7,2,9,2],[7,3,9,3],[10,1,12,1],[10,2,12,2],[10,3,12,3],[7,4,9,4],[10,4,12,4],[13,4,15,4],[13,1,15,1],[16,1,18,1],[16,2,18,2],[16,3,18,3],[16,4,18,4],[3,5,3,8],[5,1,6,1],[5,2,6,2],[5,3,6,3],[5,4,6,4],[13,2,15,2],[13,3,15,3],[19,1,21,1],[19,2,21,2],[19,3,21,3],[22,1,24,1],[22,2,24,2],[22,3,24,3],[37,3,39,3],[34,1,36,1],[34,2,36,2],[34,3,36,3],[49,4,51,4],[49,1,51,1],[49,2,51,2],[49,3,51,3],[46,1,48,1],[46,2,48,2],[46,3,48,3],[46,4,48,4],[52,4,54,4],[61,1,63,1],[61,2,63,2],[61,3,63,3],[61,4,63,4],[55,1,57,1],[55,2,57,2],[55,3,57,3],[55,4,57,4],[58,1,60,1],[58,2,60,2],[58,3,60,3],[58,4,60,4],[52,1,54,1],[52,2,54,2],[52,3,54,3]]}
[false]
[]
[null,null,null,null,null,null,null,null,false]
[null,{"$f":"'٥ - قائمة الأجوبة'!B3","v":"المرجع"},{"$f":"'٥ - قائمة الأجوبة'!C3","v":"المبادئ التوجيهية الأساسابية لشؤون الحوكمة والضمان السيبراني الوطني"},{"$f":"'٥ - قائمة الأجوبة'!D3","v":"الفئة"},{"$f":"'٥ - قائمة الأجوبة'!E3","v":"السؤال"},"الإجابة"]
[null,null,null,null,null,null,"انقر على إجابة واحدة فقط لكل سؤال"]
[null,{"$f":"'٥ - قائمة الأجوبة'!B5","v":"1\n(المقدمة)"},{"$f":"'٥ - قائمة الأجوبة'!C5","v":"N/A"},{"$f":"'٥ - قائمة الأجوبة'!D5","v":"قابلية تطبيق قانون حماية خصوصية البيانات الشخصية (PDPPL)"},{"$f":"'٥ - قائمة الأجوبة'!E5","v":"هل تقوم مؤسستك بمعالجة البيانات الشخصية إلكترونيًا؛ جمع البيانات الشخصية أو تلقيها أو استخراجها تحسبًا لمعالجتها إلكترونيًا أو معالجة البيانات الشخصية من خلال مجموعة من تقنيات المعالجة الإلكترونية والتقليدية؟\n\n* إذا لم تقم بمعالجة أي بيانات شخصية، فلن تحتاج إلى إكمال باقي هذا التقييم أو اتخاذ إجراء للامتثال لـقانون حماية خصوصية البيانات الشخصية (PDPPL)."},{"$f":"'٥ - قائمة الأجوبة'!H5","v":"أ"},false,{"$f":"F6","v":"أ"},{"$f":"'٥ - قائمة الأجوبة'!I5","v":"لا"}]
[null,null,null,null,null,{"$f":"'٥ - قائمة الأجوبة'!H6","v":"ب"},false,{"$f":"F7","v":"ب"},{"$f":"'٥ - قائمة الأجوبة'!I6","v":"نعم"}]
[null,{"$f":"'٥ - قائمة الأجوبة'!B7","v":2},{"$f":"'٥ - قائمة الأجوبة'!C7","v":"- Principles of Data Privacy Guidelines for Regulated Entities"},{"$f":"'٥ - قائمة الأجوبة'!D7","v":"المبادئ الأساسبة لحماية خصوصية البيانات"},{"$f":"'٥ - قائمة الأجوبة'!E7","v":"هل تقوم مؤسستك بإجراء مراجعات منتظمة لفهم معالجة البيانات الشخصية التي تقوم بها؟\n\n* ستساعدكم عمليات التدقيق هذه على فهم كيفية تدفق البيانات الشخصية عبر المؤسسة وكيفية استخدامها."},{"$f":"'٥ - قائمة الأجوبة'!H7","v":"أ"},false,{"$f":"F8","v":"أ"},{"$f":"'٥ - قائمة الأجوبة'!I7","v":"لا - لم يكتمل بعد"}]
[null,null,null,null,null,{"$f":"'٥ - قائمة الأجوبة'!H8","v":"ب"},false,{"$f":"F9","v":"ب"},{"$f":"'٥ - قائمة الأجوبة'!I8","v":"نعم - تم بنجاح"}]
[null,null,null,null,null,{"$f":"'٥ - قائمة الأجوبة'!H9","v":"ج"},false,{"$f":"F10","v":"ج"},{"$f":"'٥ - قائمة الأجوبة'!I9","v":"لا - لا ينطبق"}]
[null,{"$f":"'٥ - قائمة الأجوبة'!B10","v":3},{"$f":"'٥ - قائمة الأجوبة'!C10","v":"- Register of Processing Activities (RoPA) Guidelines for Regulated Entities"},{"$f":"'٥ - قائمة الأجوبة'!D10","v":"المبادئ الأساسبة لحماية خصوصية البيانات"},{"$f":"'٥ - قائمة الأجوبة'!E10","v":"هل تقوم مؤسستكم بتوثيق البيانات الشخصية للأفراد (مثل العملاء و / أو الموظفين) التي تعالجها في سجلات أنشطة معالجة البيانات الشخصية (RoPA)؟"},{"$f":"'٥ - قائمة الأجوبة'!H10","v":"أ"},false,{"$f":"F11","v":"أ"},{"$f":"'٥ - قائمة الأجوبة'!I10","v":"لا - لم يكتمل بعد"}]
[null,null,null,null,null,{"$f":"'٥ - قائمة الأجوبة'!H11","v":"ب"},false,"ب",{"$f":"'٥ - قائمة الأجوبة'!I11","v":"نعم - تم بنجاح"}]
[null,null,null,null,null,{"$f":"'٥ - قائمة الأجوبة'!H12","v":"ج"},false,"ج",{"$f":"'٥ - قائمة الأجوبة'!I12","v":"لا - لا ينطبق"}]
[null,{"$f":"'٥ - قائمة الأجوبة'!B13","v":4},{"$f":"'٥ - قائمة الأجوبة'!C13","v":"- Permitted Reasons Guidelines for Regulated Entities"},{"$f":"'٥ - قائمة الأجوبة'!D13","v":"الأسباب التي تسمح بمعالجة البيانات الشخصية"},{"$f":"'٥ - قائمة الأجوبة'!E13","v":"هل لدى مؤسستك إجراءات لتحديد وتوثيق السبب الذي يسمح بمعالجة البيانات الشخصية؟\n\n* بموجب قانون حماية خصوصية البيانات الشخصية (PDPPL)، هناك أربعة أسبابتسمح بمعالحة البيانات الشخصية، وهي:\n- موافقة صريحة: من الفرد لمعالجة البيانات الشخصية.\n- التزام تعاقدي: هناك حاجة للمعالجة من أجل إبرام أو تنفيذ العقد.\n- الالتزام القانوني: الذي تلتزم المؤسسة بموجبه بمعالجة البيانات الخاصة به.\n- المصلحة المشروعة: للمؤسسة أو الأطراف الثالثة المشاركة."},{"$f":"'٥ - قائمة الأجوبة'!H13","v":"أ"},false,"أ",{"$f":"'٥ - قائمة الأجوبة'!I13","v":"لا - لم يكتمل بعد"}]
[null,null,null,null,null,{"$f":"'٥ - قائمة الأجوبة'!H14","v":"ب"},false,"ب",{"$f":"'٥ - قائمة الأجوبة'!I14","v":"نعم - تم بنجاح"}]
[null,null,null,null,null,{"$f":"'٥ - قائمة الأجوبة'!H15","v":"ج"},false,"ج",{"$f":"'٥ - قائمة الأجوبة'!I15","v":"لا - لا ينطبق"}]
[null,{"$f":"'٥ - قائمة الأجوبة'!B16","v":5},{"$f":"'٥ - قائمة الأجوبة'!C16","v":"- Competent Authority Exemptions Guidelines for Regulated Entities\n\n- Controller Exemptions Guidelines for Regulated Entities"},{"$f":"'٥ - قائمة الأجوبة'!D16","v":"الاعفاءات"},{"$f":"'٥ - قائمة الأجوبة'!E16","v":"هل لدى مؤسستكم إجراءات معمول بها لتحديد وتوثيق أي استثناءات بموجب المادتين ١٨ و / أو  ١٩؟"},{"$f":"'٥ - قائمة الأجوبة'!H16","v":"أ"},false,"أ",{"$f":"'٥ - قائمة الأجوبة'!I16","v":"لا - لم يكتمل بعد"}]
[null,null,null,null,null,{"$f":"'٥ - قائمة الأجوبة'!H17","v":"ب"},false,"ب",{"$f":"'٥ - قائمة الأجوبة'!I17","v":"نعم - تم بنجاح"}]
[null,null,null,null,null,{"$f":"'٥ - قائمة الأجوبة'!H18","v":"ج"},false,"ج",{"$f":"'٥ - قائمة الأجوبة'!I18","v":"لا - لا ينطبق"}]
[null,{"$f":"'٥ - قائمة الأجوبة'!B19","v":6},{"$f":"'٥ - قائمة الأجوبة'!C19","v":"- Permitted Reasons Guidelines for Regulated Entities"},{"$f":"'٥ - قائمة الأجوبة'!D19","v":"الأسباب التي تسمح بمعالجة البيانات الشخصية"},{"$f":"'٥ - قائمة الأجوبة'!E19","v":"حيث يتم تحديد \"الموافقة الصريحة\" على أنها السبب الذي يسمح بمعالجة البيانات الشخصية، هل لدى مؤسستكم عملية ثابتة لطلب وتسجيل الموافقة؟"},{"$f":"'٥ - قائمة الأجوبة'!H19","v":"أ"},false,"أ",{"$f":"'٥ - قائمة الأجوبة'!I19","v":"لا - لم يكتمل بعد"}]
[null,null,null,null,null,{"$f":"'٥ - قائمة الأجوبة'!H20","v":"ب"},false,"ب",{"$f":"'٥ - قائمة الأجوبة'!I20","v":"نعم - تم بنجاح"}]
[null,null,null,null,null,{"$f":"'٥ - قائمة الأجوبة'!H21","v":"ج"},false,"ج",{"$f":"'٥ - قائمة الأجوبة'!I21","v":"لا - لا ينطبق"}]
[null,{"$f":"'٥ - قائمة الأجوبة'!B22","v":7},{"$f":"'٥ - قائمة الأجوبة'!C22","v":"- Special Nature Processing Guidelines for Regulated Entities "},{"$f":"'٥ - قائمة الأجوبة'!D22","v":"معالجة البيانات الشخصية ذات الطبيعة الخاصة"},{"$f":"'٥ - قائمة الأجوبة'!E22","v":"هل تلتزم مؤسستكم بمتطلبات معالجة \"البيانات الشخصية ذات الطبيعة الخاصة؟\"\n\n* بموجب قانون حماية خصوصية البيانات الشخصية، فإن البيانات الشخصية ذات الطبيعة الخاصة هي:\n- الأصل العرقي\n- بيانات الأطفال الشخصية\n- الحالة الصحية أو الجسدية أو النفسية\n- الدين\n- الحالة الزوجية\n- الجرائم الجنائية\n- البيانات الحيوية"},{"$f":"'٥ - قائمة الأجوبة'!H22","v":"أ"},false,"أ",{"$f":"'٥ - قائمة الأجوبة'!I22","v":"لا - لم يكتمل بعد"}]
[null,null,null,null,null,{"$f":"'٥ - قائمة الأجوبة'!H23","v":"ب"},false,"ب",{"$f":"'٥ - قائمة الأجوبة'!I23","v":"نعم - تم بنجاح"}]
[null,null,null,null,null,{"$f":"'٥ - قائمة الأجوبة'!H24","v":"ج"},false,"ج",{"$f":"'٥ - قائمة الأجوبة'!I24","v":"لا - لا ينطبق"}]
[null,{"$f":"'٥ - قائمة الأجوبة'!B25","v":8},{"$f":"'٥ - قائمة الأجوبة'!C25","v":"- Permitted Reasons Guidelines for Regulated Entities"},{"$f":"'٥ - قائمة الأجوبة'!D25","v":"الأسباب التي تسمح بمعالجة البيانات الشخصية"},{"$f":"'٥ - قائمة الأجوبة'!E25","v":"أين يتم تحديد \"المصالح المشروعة\" على أنها السبب الذي يسمح بمعالجة البيانات الشخصية هل قمتم بإجراء     Legitimate Interest Assessment (تقييم المصالح المشروعة) وفقًا للمبادئ التوجيهية لشؤون الحوكمة والضمان السيبراني الوطني؟"},{"$f":"'٥ - قائمة الأجوبة'!H25","v":"أ"},false,"أ",{"$f":"'٥ - قائمة الأجوبة'!I25","v":"لا - لم يكتمل بعد"}]
[null,null,null,null,null,{"$f":"'٥ - قائمة الأجوبة'!H26","v":"ب"},false,"ب",{"$f":"'٥ - قائمة الأجوبة'!I26","v":"نعم - تم بنجاح"}]
[null,null,null,null,null,{"$f":"'٥ - قائمة الأجوبة'!H27","v":"ج"},false,"ج",{"$f":"'٥ - قائمة الأجوبة'!I27","v":"لا - لا ينطبق"}]
[null,{"$f":"'٥ - قائمة الأجوبة'!B28","v":9},{"$f":"'٥ - قائمة الأجوبة'!C28","v":"- Individuals’ Rights Guidelines for Regulated Entities\n\n- Individuals’ Rights Guidelines for Individuals"},{"$f":"'٥ - قائمة الأجوبة'!D28","v":"حقوق الأفراد"},{"$f":"'٥ - قائمة الأجوبة'!E28","v":"هل لدى مؤسستكم الإجراءات المعمول بها لتمكين الأفراد من ممارسة حقوقهم على النحو المنصوص عليه في قانون حماية خصوصية البيانات الشخصية (PDPPL)؟\n\n* الحقوق هي كما يلي:\nالحق في حماية البيانات الشخصية ومعالجتها بشكل مشروع؛\n الحق في سحب الموافقة السابقة على معالجة البيانات الشخصية؛\nحق الاعتراض؛\nحق الحذف؛\nحق طلب تصحيح البيانات الشخصية؛\nحق الإخطار بمعالجة البيانات الشخصية؛\nحق الإخطار بأي إفشاء بيانات شخصية غير دقيقة؛\nحق في الوصول للبيانات الشخصية؛"},{"$f":"'٥ - قائمة الأجوبة'!H28","v":"أ"},false,"أ",{"$f":"'٥ - قائمة الأجوبة'!I28","v":"لا - لم يكتمل بعد"}]
[null,null,null,null,null,{"$f":"'٥ - قائمة الأجوبة'!H29","v":"ب"},false,"ب",{"$f":"'٥ - قائمة الأجوبة'!I29","v":"نعم - تم بنجاح"}]
[null,null,null,null,null,{"$f":"'٥ - قائمة الأجوبة'!H30","v":"ج"},false,"ج",{"$f":"'٥ - قائمة الأجوبة'!I30","v":"لا - لا ينطبق"}]
[null,{"$f":"'٥ - قائمة الأجوبة'!B31","v":10},{"$f":"'٥ - قائمة الأجوبة'!C31","v":"- Personal Data Management System (PDMS) Checklist for Regulated Entities\n\n*Items contained within the Checklist refer to further guidelines which contain full requirements "},{"$f":"'٥ - قائمة الأجوبة'!D31","v":"الحوكمة"},{"$f":"'٥ - قائمة الأجوبة'!E31","v":"هل لدى مؤسستكم سياسات محددة ومعتمدة تم نشرها عن معالجة البيانات الشخصية وهل يتم مراقبة الامتثال عبر المؤسسة؟"},{"$f":"'٥ - قائمة الأجوبة'!H31","v":"أ"},false,"أ",{"$f":"'٥ - قائمة الأجوبة'!I31","v":"لا - لم يكتمل بعد"}]
[null,null,null,null,null,{"$f":"'٥ - قائمة الأجوبة'!H32","v":"ب"},false,"ب",{"$f":"'٥ - قائمة الأجوبة'!I32","v":"نعم - تم بنجاح"}]
[null,null,null,null,null,{"$f":"'٥ - قائمة الأجوبة'!H33","v":"ج"},false,"ج",{"$f":"'٥ - قائمة الأجوبة'!I33","v":"لا - لا ينطبق"}]
[null,{"$f":"'٥ - قائمة الأجوبة'!B34","v":11},{"$f":"'٥ - قائمة الأجوبة'!C34","v":"- Principles of Data Privacy Guidelines for Regulated Entities"},{"$f":"'٥ - قائمة الأجوبة'!D34","v":"الحوكمة"},{"$f":"'٥ - قائمة الأجوبة'!E34","v":"هل تمتلك مؤسستكم إطار عمل للحوكمة يحدد بوضوح الأدوار والمسؤوليات فيما يتعلق بحماية خصوصية البيانات؟"},{"$f":"'٥ - قائمة الأجوبة'!H34","v":"أ"},false,"أ",{"$f":"'٥ - قائمة الأجوبة'!I34","v":"لا - لم يكتمل بعد"}]
[null,null,null,null,null,{"$f":"'٥ - قائمة الأجوبة'!H35","v":"ب"},false,"ب",{"$f":"'٥ - قائمة الأجوبة'!I35","v":"نعم - تم بنجاح"}]
[null,null,null,null,null,{"$f":"'٥ - قائمة الأجوبة'!H36","v":"ج"},false,"ج",{"$f":"'٥ - قائمة الأجوبة'!I36","v":"لا - لا ينطبق"}]
[null,{"$f":"'٥ - قائمة الأجوبة'!B37","v":12},{"$f":"'٥ - قائمة الأجوبة'!C37","v":"- Principles of Data Privacy Guidelines for Regulated Entities"},{"$f":"'٥ - قائمة الأجوبة'!D37","v":"التدريب والتوعية"},{"$f":"'٥ - قائمة الأجوبة'!E37","v":"هل تمتلك مؤسستكم عملية لضمان إجراء التدريب والتوعية فيما يخص حماية خصوصية البيانات عبر المؤسسة؟"},{"$f":"'٥ - قائمة الأجوبة'!H37","v":"أ"},false,"أ",{"$f":"'٥ - قائمة الأجوبة'!I37","v":"لا - لم يكتمل بعد"}]
[null,null,null,null,null,{"$f":"'٥ - قائمة الأجوبة'!H38","v":"ب"},false,"ب",{"$f":"'٥ - قائمة الأجوبة'!I38","v":"نعم - تم بنجاح"}]
[null,null,null,null,null,{"$f":"'٥ - قائمة الأجوبة'!H39","v":"ج"},false,"ج",{"$f":"'٥ - قائمة الأجوبة'!I39","v":"لا - لا ينطبق"}]
[null,{"$f":"'٥ - قائمة الأجوبة'!B40","v":13},{"$f":"'٥ - قائمة الأجوبة'!C40","v":"- Personal Data Management System (PDMS) Checklist for Regulated Entities\n\n- Controller and Processor Guidelines for Regulated Entities"},{"$f":"'٥ - قائمة الأجوبة'!D40","v":"الاتفاقات مع الجهات الخارجية"},{"$f":"'٥ - قائمة الأجوبة'!E40","v":"هل لدى مؤسستكم عقد مكتوب مع معالجي البيانات الذين يعالجون البيانات الشخصية نيابة عنكم، بما في ذلك متطلبات استخدام معالجي البيانات من الباطن؟"},{"$f":"'٥ - قائمة الأجوبة'!H40","v":"أ"},false,"أ",{"$f":"'٥ - قائمة الأجوبة'!I40","v":"لا - لم يكتمل بعد"}]
[null,null,null,null,null,{"$f":"'٥ - قائمة الأجوبة'!H41","v":"ب"},false,"ب",{"$f":"'٥ - قائمة الأجوبة'!I41","v":"نعم - تم بنجاح"}]
[null,null,null,null,null,{"$f":"'٥ - قائمة الأجوبة'!H42","v":"ج"},false,"ج",{"$f":"'٥ - قائمة الأجوبة'!I42","v":"لا - لا ينطبق"}]
[null,{"$f":"'٥ - قائمة الأجوبة'!B43","v":14},{"$f":"'٥ - قائمة الأجوبة'!C43","v":"- Data Privacy Impact Assessment (DPIA) Guidelines for Regulated Entities"},{"$f":"'٥ - قائمة الأجوبة'!D43","v":"تحليل تأثير حماية خصوصية الباينات (DPIA)"},{"$f":"'٥ - قائمة الأجوبة'!E43","v":"هل هناك إطار رسمي وموثق لإجراء وإدارة تحليلات تأثير حماية خصوصية البيانات (DPIAs) عبر المؤسسة؟\n\n*تحليل تأثير حماية خصوصية البيانات (DPIA) هي تقييم لتحديد مخاطر معالجة البيانات الشخصية للأفراد وتخفيف مخاطر المعالجة إلى مستوى مقبول. وهو يشبه تقييم المخاطر، ويجب أن يتم إجراؤه باستمرار بطريقة موحدة عبر المؤسسة."},{"$f":"'٥ - قائمة الأجوبة'!H43","v":"أ"},false,"أ",{"$f":"'٥ - قائمة الأجوبة'!I43","v":"لا - لم يكتمل بعد"}]
[null,null,null,null,null,{"$f":"'٥ - قائمة الأجوبة'!H44","v":"ب"},false,"ب",{"$f":"'٥ - قائمة الأجوبة'!I44","v":"نعم - تم بنجاح"}]
[null,null,null,null,null,{"$f":"'٥ - قائمة الأجوبة'!H45","v":"ج"},false,"ج",{"$f":"'٥ - قائمة الأجوبة'!I45","v":"لا - لا ينطبق"}]
[null,{"$f":"'٥ - قائمة الأجوبة'!B46","v":15},{"$f":"'٥ - قائمة الأجوبة'!C46","v":"- Cross-Border Data flows Permit Request Form for Regulated Entities (English)"},{"$f":"'٥ - قائمة الأجوبة'!D46","v":"تدفق البيانات عبر الحدود"},{"$f":"'٥ - قائمة الأجوبة'!E46","v":"هل تضمن مؤسستك مستوى مناسب من حماية الخصوصية لأية بيانات شخصية يعالجها الآخرون نيابة عنكم يتم نقلها خارج دولة قطر؟"},{"$f":"'٥ - قائمة الأجوبة'!H46","v":"أ"},false,"أ",{"$f":"'٥ - قائمة الأجوبة'!I46","v":"لا - لم يكتمل بعد"}]
[null,null,null,null,null,{"$f":"'٥ - قائمة الأجوبة'!H47","v":"ب"},false,"ب",{"$f":"'٥ - قائمة الأجوبة'!I47","v":"نعم - تم بنجاح"}]
[null,null,null,null,null,{"$f":"'٥ - قائمة الأجوبة'!H48","v":"ج"},false,"ج",{"$f":"'٥ - قائمة الأجوبة'!I48","v":"لا - لا ينطبق"}]
[null,{"$f":"'٥ - قائمة الأجوبة'!B49","v":16},{"$f":"'٥ - قائمة الأجوبة'!C49","v":"- Personal Data Breach Notifications Guidelines for Regulated Entities "},{"$f":"'٥ - قائمة الأجوبة'!D49","v":"خروقات البيانات"},{"$f":"'٥ - قائمة الأجوبة'!E49","v":"هل لدى مؤسستكم عملية رسمية وموثقة لتحديد الحوادث والاختراقات المتعلقة بحماية خصوصية البيانات والاستجابة لها؟"},{"$f":"'٥ - قائمة الأجوبة'!H49","v":"أ"},false,"أ",{"$f":"'٥ - قائمة الأجوبة'!I49","v":"لا - لم يكتمل بعد"}]
[null,null,null,null,null,{"$f":"'٥ - قائمة الأجوبة'!H50","v":"ب"},false,"ب",{"$f":"'٥ - قائمة الأجوبة'!I50","v":"نعم - تم بنجاح"}]
[null,null,null,null,null,{"$f":"'٥ - قائمة الأجوبة'!H51","v":"ج"},false,"ج",{"$f":"'٥ - قائمة الأجوبة'!I51","v":"لا - لا ينطبق"}]
[null,{"$f":"'٥ - قائمة الأجوبة'!B52","v":17},{"$f":"'٥ - قائمة الأجوبة'!C52","v":"- Data Privacy by Design and by Default Guidelines"},{"$f":"'٥ - قائمة الأجوبة'!D52","v":"حماية خصوصية البيانات المتضمنة بالتصميم"},{"$f":"'٥ - قائمة الأجوبة'!E52","v":"هل يوجد إطار عمل لتضمين حماية خصوصية البيانات المتضمنة بالتصميم والمتضمنة افتراضياً داخل المؤسسة؟"},{"$f":"'٥ - قائمة الأجوبة'!H52","v":"أ"},false,"أ",{"$f":"'٥ - قائمة الأجوبة'!I52","v":"لا - لم يكتمل بعد"}]
[null,null,null,null,null,{"$f":"'٥ - قائمة الأجوبة'!H53","v":"ب"},false,"ب",{"$f":"'٥ - قائمة الأجوبة'!I53","v":"نعم - تم بنجاح"}]
[null,null,null,null,null,{"$f":"'٥ - قائمة الأجوبة'!H54","v":"ج"},false,"ج",{"$f":"'٥ - قائمة الأجوبة'!I54","v":"لا - لا ينطبق"}]
[null,{"$f":"'٥ - قائمة الأجوبة'!B55","v":18},{"$f":"'٥ - قائمة الأجوبة'!C55","v":"- Data Privacy by Design and by Default Guidelines"},{"$f":"'٥ - قائمة الأجوبة'!D55","v":"أمن المعلومات"},{"$f":"'٥ - قائمة الأجوبة'!E55","v":"هل تقوم مؤسستكم بتطبيق الاحتياطات الإدارية والتقنية والمالية المناسبة وفقًا لمتطلبات قانون حماية خصوصية البيانات الشخصية (PDPPL)؟"},{"$f":"'٥ - قائمة الأجوبة'!H55","v":"أ"},false,{"$f":"F56","v":"أ"},{"$f":"'٥ - قائمة الأجوبة'!I55","v":"لا - لم يكتمل بعد"}]
[null,null,null,null,null,{"$f":"'٥ - قائمة الأجوبة'!H56","v":"ب"},false,"ب",{"$f":"'٥ - قائمة الأجوبة'!I56","v":"نعم - تم بنجاح"}]
[null,null,null,null,null,{"$f":"'٥ - قائمة الأجوبة'!H57","v":"ج"},false,"ج",{"$f":"'٥ - قائمة الأجوبة'!I57","v":"لا - لا ينطبق"}]
[null,{"$f":"'٥ - قائمة الأجوبة'!B58","v":19},{"$f":"'٥ - قائمة الأجوبة'!C58","v":"- Permitted Reasons Guidelines for Regulated Entities"},{"$f":"'٥ - قائمة الأجوبة'!D58","v":"المواقع الإلكترونية الموجهة للأطفال"},{"$f":"'٥ - قائمة الأجوبة'!E58","v":"هل تأخذ مؤسستكم في الاعتبار متطلبات قانون حماية خصوصية البيانات الشخصية (PDPPL) لمالكي أو مشغلي المواقع الإلكترونية الموجهة للأطفال؟"},{"$f":"'٥ - قائمة الأجوبة'!H58","v":"أ"},false,"أ",{"$f":"'٥ - قائمة الأجوبة'!I58","v":"لا - لم يكتمل بعد"}]
[null,null,null,null,null,{"$f":"'٥ - قائمة الأجوبة'!H59","v":"ب"},false,"ب",{"$f":"'٥ - قائمة الأجوبة'!I59","v":"نعم - تم بنجاح"}]
[null,null,null,null,null,{"$f":"'٥ - قائمة الأجوبة'!H60","v":"ج"},false,"ج",{"$f":"'٥ - قائمة الأجوبة'!I60","v":"لا - لا ينطبق"}]
[null,{"$f":"'٥ - قائمة الأجوبة'!B61","v":20},{"$f":"'٥ - قائمة الأجوبة'!C61","v":"- Complaints Guidelines for Regulated Entities\n\n- Complaints Guidelines for Individuals"},{"$f":"'٥ - قائمة الأجوبة'!D61","v":"الشكاوى"},{"$f":"'٥ - قائمة الأجوبة'!E61","v":"هل تمتلك مؤسستكم نظامًا لضمان قدرة الأفراد على طرح المخاوف أو الشكاوى إلى المؤسسة؟"},{"$f":"'٥ - قائمة الأجوبة'!H61","v":"أ"},false,"أ",{"$f":"'٥ - قائمة الأجوبة'!I61","v":"لا - لم يكتمل بعد"}]
[null,null,null,null,null,{"$f":"'٥ - قائمة الأجوبة'!H62","v":"ب"},false,"ب",{"$f":"'٥ - قائمة الأجوبة'!I62","v":"نعم - تم بنجاح"}]
[null,null,null,null,null,{"$f":"'٥ - قائمة الأجوبة'!H63","v":"ج"},false,"ج",{"$f":"'٥ - قائمة الأجوبة'!I63","v":"لا - لا ينطبق"}]

{"sheet":"٤ - التقرير","index":3,"n_rows":30,"n_cols":11,"rows_kept":30,"cut":false,"hidden":false,"merged":[[20,7,20,8],[21,7,21,8],[22,7,22,8],[23,7,23,8],[24,7,24,8],[18,7,18,8],[19,7,19,8],[1,6,1,10],[3,10,5,10],[8,6,8,8],[9,6,9,8],[10,7,10,8],[11,7,11,8],[12,7,12,8],[13,7,13,8],[14,7,14,8],[15,7,15,8],[16,7,16,8],[17,7,17,8],[25,7,25,8],[26,7,26,8],[27,7,27,8],[28,7,28,8],[29,7,29,8]]}
[]
[null,null,null,null,null,null,"Report Dashboard"]
[null,null,null,null,null,null,"المرجع","الجواب","رقم الأجوبة",null,"التقييم العام"]
[null,null,null,null,null,null,"أ","لا - لم يكتمل بعد",{"$f":"COUNTIF($G$11:$G$30,\"أ\")","v":0},{"$f":"I4/K7","v":0},{"$f":"_xlfn.IFS(J5>0.67,\"أخضر\", 0.33>J5, \"أحمر\", 0.67>J5,\"أصفر\")","v":"أحمر"}]
[null,null,null,null,null,null,"ب","نعم - تم بنجاح",{"$f":"COUNTIF($G$11:$G$30,\"ب\")","v":0},{"$f":"I5/K7","v":0}]
[null,null,null,null,null,null,"ج","لا - لا ينطبق",{"$f":"COUNTIF($G$11:$G$30,\"ج\")","v":0}]
[null,null,null,null,null,null,null,null,null,{"$f":"SUM(J4:J5)","v":0},{"$f":"20-I6","v":20}]
[]
[null,{"$f":"'٥ - قائمة الأجوبة'!B3","v":"المرجع"},{"$f":"'٥ - قائمة الأجوبة'!C3","v":"المبادئ التوجيهية الأساسابية لشؤون الحوكمة والضمان السيبراني الوطني"},{"$f":"'٥ - قائمة الأجوبة'!D3","v":"الفئة"},{"$f":"'٥ - قائمة الأجوبة'!E3","v":"السؤال"},"CONCAT","الإجابة",null,null,null,{"$f":"'٥ - قائمة الأجوبة'!J3","v":"الاعتبارات الأولية"}]
[]
[null,{"$f":"'٣ - التقييم الذاتي'!B6","v":"1\n(المقدمة)"},{"$f":"'٣ - التقييم الذاتي'!C6","v":"N/A"},{"$f":"'٣ - التقييم الذاتي'!D6","v":"قابلية تطبيق قانون حماية خصوصية البيانات الشخصية (PDPPL)"},{"$f":"'٣ - التقييم الذاتي'!E6","v":"هل تقوم مؤسستك بمعالجة البيانات الشخصية إلكترونيًا؛ جمع البيانات الشخصية أو تلقيها أو استخراجها تحسبًا لمعالجتها إلكترونيًا أو معالجة البيانات الشخصية من خلال مجموعة من تقنيات المعالجة الإلكترونية والتقليدية؟\n\n* إذا لم تقم بمعالجة أي بيانات شخصية، فلن تحتاج إلى إكمال باقي هذا التقييم أو اتخاذ إجراء للامتثال لـقانون حماية خصوصية البيانات الشخصية (PDPPL)."},{"$f":"CONCATENATE(B11,G11)","v":{"$error":"#N/A"}},{"$f":"VLOOKUP(TRUE,'٣ - التقييم الذاتي'!G6:H7,2,FALSE)","v":{"$error":"#N/A"}},{"$f":"VLOOKUP(G11,$G$4:$H$6,2,FALSE)","v":{"$error":"#N/A"}},null,null,{"$f":"VLOOKUP(F11,'٥ - قائمة الأجوبة'!G5:J6,4,TRUE)","v":{"$error":"#N/A"}}]
[null,2,{"$f":"'٣ - التقييم الذاتي'!C8","v":"- Principles of Data Privacy Guidelines for Regulated Entities"},{"$f":"'٣ - التقييم الذاتي'!D8","v":"المبادئ الأساسبة لحماية خصوصية البيانات"},{"$f":"'٣ - التقييم الذاتي'!E8","v":"هل تقوم مؤسستك بإجراء مراجعات منتظمة لفهم معالجة البيانات الشخصية التي تقوم بها؟\n\n* ستساعدكم عمليات التدقيق هذه على فهم كيفية تدفق البيانات الشخصية عبر المؤسسة وكيفية استخدامها."},{"$error":"#N/A"},{"$f":"VLOOKUP(TRUE,'٣ - التقييم الذاتي'!G8:H10,2,FALSE)","v":{"$error":"#N/A"}},{"$error":"#N/A"},null,null,{"$f":"VLOOKUP(F12,'٥ - قائمة الأجوبة'!G7:J9,4,TRUE)","v":{"$error":"#N/A"}}]
[null,{"$f":"'٣ - التقييم الذاتي'!B11","v":3},{"$f":"'٣ - التقييم الذاتي'!C11","v":"- Register of Processing Activities (RoPA) Guidelines for Regulated Entities"},{"$f":"'٣ - التقييم الذاتي'!D11","v":"المبادئ الأساسبة لحماية خصوصية البيانات"},{"$f":"'٣ - التقييم الذاتي'!E11","v":"هل تقوم مؤسستكم بتوثيق البيانات الشخصية للأفراد (مثل العملاء و / أو الموظفين) التي تعالجها في سجلات أنشطة معالجة البيانات الشخصية (RoPA)؟"},{"$error":"#N/A"},{"$f":"VLOOKUP(TRUE,'٣ - التقييم الذاتي'!G11:H13,2,FALSE)","v":{"$error":"#N/A"}},{"$error":"#N/A"},null,null,{"$f":"VLOOKUP(F13,'٥ - قائمة الأجوبة'!G10:J12,4,TRUE)","v":{"$error":"#N/A"}}]
[null,{"$f":"'٣ - التقييم الذاتي'!B14","v":4},{"$f":"'٣ - التقييم الذاتي'!C14","v":"- Permitted Reasons Guidelines for Regulated Entities"},{"$f":"'٣ - التقييم الذاتي'!D14","v":"الأسباب التي تسمح بمعالجة البيانات الشخصية"},{"$f":"'٣ - التقييم الذاتي'!E14","v":"هل لدى مؤسستك إجراءات لتحديد وتوثيق السبب الذي يسمح بمعالجة البيانات الشخصية؟\n\n* بموجب قانون حماية خصوصية البيانات الشخصية (PDPPL)، هناك أربعة أسبابتسمح بمعالحة البيانات الشخصية، وهي:\n- موافقة صريحة: من الفرد لمعالجة البيانات الشخصية.\n- التزام تعاقدي: هناك حاجة للمعالجة من أجل إبرام أو تنفيذ العقد.\n- الالتزام القانوني: الذي تلتزم المؤسسة بموجبه بمعالجة البيانات الخاصة به.\n- المصلحة المشروعة: للمؤسسة أو الأطراف الثالثة المشاركة."},{"$error":"#N/A"},{"$f":"VLOOKUP(TRUE,'٣ - التقييم الذاتي'!G14:H16,2,FALSE)","v":{"$error":"#N/A"}},{"$error":"#N/A"},null,null,{"$f":"VLOOKUP(F14,'٥ - قائمة الأجوبة'!G13:J15,4,TRUE)","v":{"$error":"#N/A"}}]
[null,{"$f":"'٣ - التقييم الذاتي'!B17","v":5},{"$f":"'٣ - التقييم الذاتي'!C17","v":"- Competent Authority Exemptions Guidelines for Regulated Entities\n\n- Controller Exemptions Guidelines for Regulated Entities"},{"$f":"'٣ - التقييم الذاتي'!D17","v":"الاعفاءات"},{"$f":"'٣ - التقييم الذاتي'!E17","v":"هل لدى مؤسستكم إجراءات معمول بها لتحديد وتوثيق أي استثناءات بموجب المادتين ١٨ و / أو  ١٩؟"},{"$error":"#N/A"},{"$f":"VLOOKUP(TRUE,'٣ - التقييم الذاتي'!G17:H19,2,FALSE)","v":{"$error":"#N/A"}},{"$error":"#N/A"},null,null,{"$f":"VLOOKUP(F15,'٥ - قائمة الأجوبة'!G16:J18,4,TRUE)","v":{"$error":"#N/A"}}]
[null,{"$f":"'٣ - التقييم الذاتي'!B20","v":6},{"$f":"'٣ - التقييم الذاتي'!C20","v":"- Permitted Reasons Guidelines for Regulated Entities"},{"$f":"'٣ - التقييم الذاتي'!D20","v":"الأسباب التي تسمح بمعالجة البيانات الشخصية"},{"$f":"'٣ - التقييم الذاتي'!E20","v":"حيث يتم تحديد \"الموافقة الصريحة\" على أنها السبب الذي يسمح بمعالجة البيانات الشخصية، هل لدى مؤسستكم عملية ثابتة لطلب وتسجيل الموافقة؟"},{"$error":"#N/A"},{"$f":"VLOOKUP(TRUE,'٣ - التقييم الذاتي'!G18:H20,2,FALSE)","v":{"$error":"#N/A"}},{"$error":"#N/A"},null,null,{"$f":"VLOOKUP(F16,'٥ - قائمة الأجوبة'!G19:J21,4,TRUE)","v":{"$error":"#N/A"}}]
[null,{"$f":"'٣ - التقييم الذاتي'!B23","v":7},{"$f":"'٣ - التقييم الذاتي'!C23","v":"- Special Nature Processing Guidelines for Regulated Entities "},{"$f":"'٣ - التقييم الذاتي'!D23","v":"معالجة البيانات الشخصية ذات الطبيعة الخاصة"},{"$f":"'٣ - التقييم الذاتي'!E23","v":"هل تلتزم مؤسستكم بمتطلبات معالجة \"البيانات الشخصية ذات الطبيعة الخاصة؟\"\n\n* بموجب قانون حماية خصوصية البيانات الشخصية، فإن البيانات الشخصية ذات الطبيعة الخاصة هي:\n- الأصل العرقي\n- بيانات الأطفال الشخصية\n- الحالة الصحية أو الجسدية أو النفسية\n- الدين\n- الحالة الزوجية\n- الجرائم الجنائية\n- البيانات الحيوية"},{"$error":"#N/A"},{"$f":"VLOOKUP(TRUE,'٣ - التقييم الذاتي'!G23:H25,2,FALSE)","v":{"$error":"#N/A"}},{"$error":"#N/A"},null,null,{"$f":"VLOOKUP(F17,'٥ - قائمة الأجوبة'!G22:J24,4,TRUE)","v":{"$error":"#N/A"}}]
[null,{"$f":"'٣ - التقييم الذاتي'!B26","v":8},{"$f":"'٣ - التقييم الذاتي'!C26","v":"- Permitted Reasons Guidelines for Regulated Entities"},{"$f":"'٣ - التقييم الذاتي'!D26","v":"الأسباب التي تسمح بمعالجة البيانات الشخصية"},{"$f":"'٣ - التقييم الذاتي'!E26","v":"أين يتم تحديد \"المصالح المشروعة\" على أنها السبب الذي يسمح بمعالجة البيانات الشخصية هل قمتم بإجراء     Legitimate Interest Assessment (تقييم المصالح المشروعة) وفقًا للمبادئ التوجيهية لشؤون الحوكمة والضمان السيبراني الوطني؟"},{"$error":"#N/A"},{"$f":"VLOOKUP(TRUE,'٣ - التقييم الذاتي'!G26:H28,2,FALSE)","v":{"$error":"#N/A"}},{"$error":"#N/A"},null,null,{"$f":"VLOOKUP(F18,'٥ - قائمة الأجوبة'!G25:J27,4,TRUE)","v":{"$error":"#N/A"}}]
[null,{"$f":"'٣ - التقييم الذاتي'!B29","v":9},{"$f":"'٣ - التقييم الذاتي'!C29","v":"- Individuals’ Rights Guidelines for Regulated Entities\n\n- Individuals’ Rights Guidelines for Individuals"},{"$f":"'٣ - التقييم الذاتي'!D29","v":"حقوق الأفراد"},{"$f":"'٣ - التقييم الذاتي'!E29","v":"هل لدى مؤسستكم الإجراءات المعمول بها لتمكين الأفراد من ممارسة حقوقهم على النحو المنصوص عليه في قانون حماية خصوصية البيانات الشخصية (PDPPL)؟\n\n* الحقوق هي كما يلي:\nالحق في حماية البيانات الشخصية ومعالجتها بشكل مشروع؛\n الحق في سحب الموافقة السابقة على معالجة البيانات الشخصية؛\nحق الاعتراض؛\nحق الحذف؛\nحق طلب تصحيح البيانات الشخصية؛\nحق الإخطار بمعالجة البيانات الشخصية؛\nحق الإخطار بأي إفشاء بيانات شخصية غير دقيقة؛\nحق في الوصول للبيانات الشخصية؛"},{"$error":"#N/A"},{"$f":"VLOOKUP(TRUE,'٣ - التقييم الذاتي'!G29:H31,2,FALSE)","v":{"$error":"#N/A"}},{"$error":"#N/A"},null,null,{"$f":"VLOOKUP(F19,'٥ - قائمة الأجوبة'!G28:J30,4,TRUE)","v":{"$error":"#N/A"}}]
[null,{"$f":"'٣ - التقييم الذاتي'!B32","v":10},{"$f":"'٣ - التقييم الذاتي'!C32","v":"- Personal Data Management System (PDMS) Checklist for Regulated Entities\n\n*Items contained within the Checklist refer to further guidelines which contain full requirements "},{"$f":"'٣ - التقييم الذاتي'!D32","v":"الحوكمة"},{"$f":"'٣ - التقييم الذاتي'!E32","v":"هل لدى مؤسستكم سياسات محددة ومعتمدة تم نشرها عن معالجة البيانات الشخصية وهل يتم مراقبة الامتثال عبر المؤسسة؟"},{"$error":"#N/A"},{"$f":"VLOOKUP(TRUE,'٣ - التقييم الذاتي'!G32:H34,2,FALSE)","v":{"$error":"#N/A"}},{"$error":"#N/A"},null,null,{"$f":"VLOOKUP(F20,'٥ - قائمة الأجوبة'!G31:J33,4,TRUE)","v":{"$error":"#N/A"}}]
[null,{"$f":"'٣ - التقييم الذاتي'!B35","v":11},{"$f":"'٣ - التقييم الذاتي'!C35","v":"- Principles of Data Privacy Guidelines for Regulated Entities"},{"$f":"'٣ - التقييم الذاتي'!D35","v":"الحوكمة"},{"$f":"'٣ - التقييم الذاتي'!E35","v":"هل تمتلك مؤسستكم إطار عمل للحوكمة يحدد بوضوح الأدوار والمسؤوليات فيما يتعلق بحماية خصوصية البيانات؟"},{"$error":"#N/A"},{"$f":"VLOOKUP(TRUE,'٣ - التقييم الذاتي'!G35:H37,2,FALSE)","v":{"$error":"#N/A"}},{"$error":"#N/A"},null,null,{"$f":"VLOOKUP(F21,'٥ - قائمة الأجوبة'!G34:J36,4,TRUE)","v":{"$error":"#N/A"}}]
[null,{"$f":"'٣ - التقييم الذاتي'!B38","v":12},{"$f":"'٣ - التقييم الذاتي'!C38","v":"- Principles of Data Privacy Guidelines for Regulated Entities"},{"$f":"'٣ - التقييم الذاتي'!D38","v":"التدريب والتوعية"},{"$f":"'٣ - التقييم الذاتي'!E38","v":"هل تمتلك مؤسستكم عملية لضمان إجراء التدريب والتوعية فيما يخص حماية خصوصية البيانات عبر المؤسسة؟"},{"$error":"#N/A"},{"$f":"VLOOKUP(TRUE,'٣ - التقييم الذاتي'!G38:H40,2,FALSE)","v":{"$error":"#N/A"}},{"$error":"#N/A"},null,null,{"$f":"VLOOKUP(F22,'٥ - قائمة الأجوبة'!G37:J39,4,TRUE)","v":{"$error":"#N/A"}}]
[null,{"$f":"'٣ - التقييم الذاتي'!B41","v":13},{"$f":"'٣ - التقييم الذاتي'!C41","v":"- Personal Data Management System (PDMS) Checklist for Regulated Entities\n\n- Controller and Processor Guidelines for Regulated Entities"},{"$f":"'٣ - التقييم الذاتي'!D41","v":"الاتفاقات مع الجهات الخارجية"},{"$f":"'٣ - التقييم الذاتي'!E41","v":"هل لدى مؤسستكم عقد مكتوب مع معالجي البيانات الذين يعالجون البيانات الشخصية نيابة عنكم، بما في ذلك متطلبات استخدام معالجي البيانات من الباطن؟"},{"$error":"#N/A"},{"$f":"VLOOKUP(TRUE,'٣ - التقييم الذاتي'!G41:H43,2,FALSE)","v":{"$error":"#N/A"}},{"$error":"#N/A"},null,null,{"$f":"VLOOKUP(F23,'٥ - قائمة الأجوبة'!G40:J42,4,TRUE)","v":{"$error":"#N/A"}}]
[null,{"$f":"'٣ - التقييم الذاتي'!B44","v":14},{"$f":"'٣ - التقييم الذاتي'!C44","v":"- Data Privacy Impact Assessment (DPIA) Guidelines for Regulated Entities"},{"$f":"'٣ - التقييم الذاتي'!D44","v":"تحليل تأثير حماية خصوصية الباينات (DPIA)"},{"$f":"'٣ - التقييم الذاتي'!E44","v":"هل هناك إطار رسمي وموثق لإجراء وإدارة تحليلات تأثير حماية خصوصية البيانات (DPIAs) عبر المؤسسة؟\n\n*تحليل تأثير حماية خصوصية البيانات (DPIA) هي تقييم لتحديد مخاطر معالجة البيانات الشخصية للأفراد وتخفيف مخاطر المعالجة إلى مستوى مقبول. وهو يشبه تقييم المخاطر، ويجب أن يتم إجراؤه باستمرار بطريقة موحدة عبر المؤسسة."},{"$error":"#N/A"},{"$f":"VLOOKUP(TRUE,'٣ - التقييم الذاتي'!G44:H46,2,FALSE)","v":{"$error":"#N/A"}},{"$error":"#N/A"},null,null,{"$f":"VLOOKUP(F24,'٥ - قائمة الأجوبة'!G43:J45,4,TRUE)","v":{"$error":"#N/A"}}]
[null,{"$f":"'٣ - التقييم الذاتي'!B47","v":15},{"$f":"'٣ - التقييم الذاتي'!C47","v":"- Cross-Border Data flows Permit Request Form for Regulated Entities (English)"},{"$f":"'٣ - التقييم الذاتي'!D47","v":"تدفق البيانات عبر الحدود"},{"$f":"'٣ - التقييم الذاتي'!E47","v":"هل تضمن مؤسستك مستوى مناسب من حماية الخصوصية لأية بيانات شخصية يعالجها الآخرون نيابة عنكم يتم نقلها خارج دولة قطر؟"},{"$error":"#N/A"},{"$f":"VLOOKUP(TRUE,'٣ - التقييم الذاتي'!G47:H49,2,FALSE)","v":{"$error":"#N/A"}},{"$error":"#N/A"},null,null,{"$f":"VLOOKUP(F25,'٥ - قائمة الأجوبة'!G46:J48,4,TRUE)","v":{"$error":"#N/A"}}]
[null,{"$f":"'٣ - التقييم الذاتي'!B50","v":16},{"$f":"'٣ - التقييم الذاتي'!C50","v":"- Personal Data Breach Notifications Guidelines for Regulated Entities "},{"$f":"'٣ - التقييم الذاتي'!D50","v":"خروقات البيانات"},{"$f":"'٣ - التقييم الذاتي'!E50","v":"هل لدى مؤسستكم عملية رسمية وموثقة لتحديد الحوادث والاختراقات المتعلقة بحماية خصوصية البيانات والاستجابة لها؟"},{"$f":"CONCATENATE(B26,G26)","v":{"$error":"#N/A"}},{"$f":"VLOOKUP(TRUE,'٣ - التقييم الذاتي'!G50:H52,2,FALSE)","v":{"$error":"#N/A"}},{"$error":"#N/A"},null,null,{"$f":"VLOOKUP(F26,'٥ - قائمة الأجوبة'!G49:J51,4,TRUE)","v":{"$error":"#N/A"}}]
[null,{"$f":"'٣ - التقييم الذاتي'!B53","v":17},{"$f":"'٣ - التقييم الذاتي'!C53","v":"- Data Privacy by Design and by Default Guidelines"},{"$f":"'٣ - التقييم الذاتي'!D53","v":"حماية خصوصية البيانات المتضمنة بالتصميم"},{"$f":"'٣ - التقييم الذاتي'!E53","v":"هل يوجد إطار عمل لتضمين حماية خصوصية البيانات المتضمنة بالتصميم والمتضمنة افتراضياً داخل المؤسسة؟"},{"$error":"#N/A"},{"$f":"VLOOKUP(TRUE,'٣ - التقييم الذاتي'!G53:H55,2,FALSE)","v":{"$error":"#N/A"}},{"$error":"#N/A"},null,null,{"$f":"VLOOKUP(F27,'٥ - قائمة الأجوبة'!G52:J54,4,TRUE)","v":{"$error":"#N/A"}}]
[null,{"$f":"'٣ - التقييم الذاتي'!B56","v":18},{"$f":"'٣ - التقييم الذاتي'!C56","v":"- Data Privacy by Design and by Default Guidelines"},{"$f":"'٣ - التقييم الذاتي'!D56","v":"أمن المعلومات"},{"$f":"'٣ - التقييم الذاتي'!E56","v":"هل تقوم مؤسستكم بتطبيق الاحتياطات الإدارية والتقنية والمالية المناسبة وفقًا لمتطلبات قانون حماية خصوصية البيانات الشخصية (PDPPL)؟"},{"$f":"CONCATENATE(B28,G28)","v":{"$error":"#N/A"}},{"$f":"VLOOKUP(TRUE,'٣ - التقييم الذاتي'!G56:H58,2,FALSE)","v":{"$error":"#N/A"}},{"$error":"#N/A"},null,null,{"$f":"VLOOKUP(F28,'٥ - قائمة الأجوبة'!G55:J57,4,TRUE)","v":{"$error":"#N/A"}}]
[null,{"$f":"'٣ - التقييم الذاتي'!B59","v":19},{"$f":"'٣ - التقييم الذاتي'!C59","v":"- Permitted Reasons Guidelines for Regulated Entities"},{"$f":"'٣ - التقييم الذاتي'!D59","v":"المواقع الإلكترونية الموجهة للأطفال"},{"$f":"'٣ - التقييم الذاتي'!E59","v":"هل تأخذ مؤسستكم في الاعتبار متطلبات قانون حماية خصوصية البيانات الشخصية (PDPPL) لمالكي أو مشغلي المواقع الإلكترونية الموجهة للأطفال؟"},{"$error":"#N/A"},{"$f":"VLOOKUP(TRUE,'٣ - التقييم الذاتي'!G59:H61,2,FALSE)","v":{"$error":"#N/A"}},{"$error":"#N/A"},null,null,{"$f":"VLOOKUP(F29,'٥ - قائمة الأجوبة'!G58:J60,4,TRUE)","v":{"$error":"#N/A"}}]
[null,{"$f":"'٣ - التقييم الذاتي'!B62","v":20},{"$f":"'٣ - التقييم الذاتي'!C62","v":"- Complaints Guidelines for Regulated Entities\n\n- Complaints Guidelines for Individuals"},{"$f":"'٣ - التقييم الذاتي'!D62","v":"الشكاوى"},{"$f":"'٣ - التقييم الذاتي'!E62","v":"هل تمتلك مؤسستكم نظامًا لضمان قدرة الأفراد على طرح المخاوف أو الشكاوى إلى المؤسسة؟"},{"$error":"#N/A"},{"$f":"VLOOKUP(TRUE,'٣ - التقييم الذاتي'!G62:H64,2,FALSE)","v":{"$error":"#N/A"}},{"$error":"#N/A"},null,null,{"$f":"VLOOKUP(F30,'٥ - قائمة الأجوبة'!G61:J63,4,TRUE)","v":{"$error":"#N/A"}}]

{"sheet":"٥ - قائمة الأجوبة","index":4,"n_rows":63,"n_cols":10,"rows_kept":63,"cut":false,"hidden":false,"merged":[[9,2,11,2],[15,2,17,2],[12,2,14,2],[6,2,8,2],[4,2,5,2],[36,4,38,4],[30,1,32,1],[33,1,35,1],[33,3,35,3],[33,4,35,4],[36,1,38,1],[30,4,32,4],[30,3,32,3],[36,3,38,3],[33,2,35,2],[30,2,32,2],[36,2,38,2],[39,4,41,4],[42,1,44,1],[42,3,44,3],[42,4,44,4],[39,2,41,2],[42,2,44,2],[45,4,47,4],[51,1,53,1],[51,3,53,3],[48,4,50,4],[51,4,53,4],[48,1,50,1],[48,3,50,3],[45,2,47,2],[51,2,53,2],[48,2,50,2],[2,7,2,8],[6,1,8,1],[6,3,8,3],[6,4,8,4],[4,1,5,1],[4,3,5,3],[4,4,5,4],[3,7,3,8],[24,4,26,4],[27,4,29,4],[9,1,11,1],[9,3,11,3],[15,1,17,1],[15,3,17,3],[12,1,14,1],[12,3,14,3],[9,4,11,4],[15,4,17,4],[18,4,20,4],[12,4,14,4],[18,1,20,1],[21,1,23,1],[21,3,23,3],[21,4,23,4],[18,3,20,3],[21,2,23,2],[18,2,20,2],[24,1,26,1],[24,3,26,3],[27,1,29,1],[27,3,29,3],[24,2,26,2],[27,2,29,2],[60,1,62,1],[60,3,62,3],[45,1,47,1],[45,3,47,3],[39,1,41,1],[39,3,41,3],[60,4,62,4],[54,1,56,1],[54,3,56,3],[54,4,56,4],[57,1,59,1],[57,3,59,3],[57,4,59,4],[60,2,62,2],[54,2,56,2],[57,2,59,2]]}
[]
[]
[null,"المرجع","المبادئ التوجيهية الأساسابية لشؤون الحوكمة والضمان السيبراني الوطني","الفئة","السؤال","Hidden Ref.","CONCAT","الإجابة",null,"الاعتبارات الأولية"]
[]
[null,"1\n(المقدمة)","N/A","قابلية تطبيق قانون حماية خصوصية البيانات الشخصية (PDPPL)","هل تقوم مؤسستك بمعالجة البيانات الشخصية إلكترونيًا؛ جمع البيانات الشخصية أو تلقيها أو استخراجها تحسبًا لمعالجتها إلكترونيًا أو معالجة البيانات الشخصية من خلال مجموعة من تقنيات المعالجة الإلكترونية والتقليدية؟\n\n* إذا لم تقم بمعالجة أي بيانات شخصية، فلن تحتاج إلى إكمال باقي هذا التقييم أو اتخاذ إجراء للامتثال لـقانون حماية خصوصية البيانات الشخصية (PDPPL).",{"$f":"B5","v":"1\n(المقدمة)"},{"$f":"CONCATENATE(F5,H5)","v":"1\n(المقدمة)أ"},"أ","لا","o لا يتم تسجيل معالجة المؤسسة للبيانات في نطاق قانون حماية خصوصية البيانات الشخصية (PDPPL) ولا تحتاج إلى اتخاذ إجراءات للامتثال."]
[null,null,null,null,null,{"$f":"B5","v":"1\n(المقدمة)"},"1\n(المقدمة)ب","ب","نعم","o يتم تسجيل معالجة المؤسسة للبيانات في نطاق قانون حماية خصوصية البيانات الشخصية (PDPPL) ويجب أن تتخذ إجراءات للامتثال."]
[null,2,"- Principles of Data Privacy Guidelines for Regulated Entities","المبادئ الأساسبة لحماية خصوصية البيانات","هل تقوم مؤسستك بإجراء مراجعات منتظمة لفهم معالجة البيانات الشخصية التي تقوم بها؟\n\n* ستساعدكم عمليات التدقيق هذه على فهم كيفية تدفق البيانات الشخصية عبر المؤسسة وكيفية استخدامها.",{"$f":"B7","v":2},{"$f":"CONCATENATE(F7,H7)","v":"2أ"},"أ","لا - لم يكتمل بعد","o القيام بالتخطيط لجدول تدقيق عبر مؤسستكم لتوثيق وفهم كيفية تدفق المعلومات الشخصية عبر المؤسسة.\no توثيق وتخطيط معالجة أي مخاطر تم تحديدها كجزء من المراجعة."]
[null,null,null,null,null,{"$f":"B7","v":2},"2ب","ب","نعم - تم بنجاح","o توثيق وتخطيط معالجة أي مخاطر تم تحديدها كجزء من المراجعة.\no التأكد من إجراء ذلك من قبل شخص لديه معرفة واسعة بالمؤسسة."]
[null,null,null,null,null,{"$f":"B7","v":2},"2ج","ج","لا - لا ينطبق","o توثيق الاستدلال لسبب عدم الانطباق. إذا لم تكن متأكدًا من إمكانية التطبيق، فيرجى زيارة الموقع الإلكتروني لشؤون الحوكمة والضمان السيبراني الوطني ومراجعة المبادئ التوجيهية المنشورة ذات الصلة."]
[null,3,"- Register of Processing Activities (RoPA) Guidelines for Regulated Entities","المبادئ الأساسبة لحماية خصوصية البيانات","هل تقوم مؤسستكم بتوثيق البيانات الشخصية للأفراد (مثل العملاء و / أو الموظفين) التي تعالجها في سجلات أنشطة معالجة البيانات الشخصية (RoPA)؟",{"$f":"B10","v":3},"3أ","أ","لا - لم يكتمل بعد","o إنشاء سجل أنشطة معالجة البيانات الشخصية (RoPA) الذي يحتفظ بسجلات أنشطة المعالجة وفقا للمبادئ التوجيهية المنشورة من قبل شؤون الحوكمة والضمان السيبراني الوطني."]
[null,null,null,null,null,{"$f":"B10","v":3},"3ب","ب","نعم - تم بنجاح","o القيام بمراجعة سجل أنشطة معالجة البيانات الشخصية (RoPA) وفقًا للمبادئ التوجيهية المنشورة من قبل شؤون الحوكمة والضمان السيبراني الوطني للتأكد من أن سجل أنشطة معالجة البيانات الشخصية (RoPA) الحالي يقوم بجمع جميع المعلومات المطلوبة.\no القيام بمراقبة سجل أنشطة معالجة البيانات الشخصية (RoPA) للتأكد من أن المعلومات الموثقة في السجل ذات صلة ومحدثة وتبقى قيد المراجعة."]
[null,null,null,null,null,{"$f":"B10","v":3},"3ج","ج","لا - لا ينطبق","o توثيق الاستدلال لسبب عدم الانطباق. إذا لم تكن متأكدًا من إمكانية التطبيق ، فيرجى زيارة الموقع الإلكتروني لشؤون الحوكمة والضمان السيبراني الوطني ومراجعة المبادئ التوجيهية المنشورة ذات الصلة."]
[null,4,"- Permitted Reasons Guidelines for Regulated Entities","الأسباب التي تسمح بمعالجة البيانات الشخصية","هل لدى مؤسستك إجراءات لتحديد وتوثيق السبب الذي يسمح بمعالجة البيانات الشخصية؟\n\n* بموجب قانون حماية خصوصية البيانات الشخصية (PDPPL)، هناك أربعة أسبابتسمح بمعالحة البيانات الشخصية، وهي:\n- موافقة صريحة: من الفرد لمعالجة البيانات الشخصية.\n- التزام تعاقدي: هناك حاجة للمعالجة من أجل إبرام أو تنفيذ العقد.\n- الالتزام القانوني: الذي تلتزم المؤسسة بموجبه بمعالجة البيانات الخاصة به.\n- المصلحة المشروعة: للمؤسسة أو الأطراف الثالثة المشاركة.",{"$f":"B13","v":4},{"$f":"CONCATENATE(F13,H13)","v":"4أ"},"أ",{"$f":"I10","v":"لا - لم يكتمل بعد"},"o  القيام بوضع إجراءات لتحديد وتوثيق الأسباب التي تسمح بمعالجة البيانات الشخصية قبل معالجة البيانات الشخصية عبر المؤسسة."]
[null,null,null,null,null,{"$f":"B13","v":4},"4ب","ب","نعم - تم بنجاح","o التأكد من أن الأسباب التي تسمح بمعالجة البيانات الشخصية الموثقة للمعالجة المحددة دقيقة. \nملحوظة لا يوجد سبب واحد أفضل أو أكثر أهمية من الآخرين. اعتمادًا على الغرض من المعالجة والعلاقة مع الفرد ، ستتمكن من تحديد أنسب سبب يسمح بمعالجة البيانات الشخصية."]
[null,null,null,null,null,{"$f":"B13","v":4},"4ج","ج","لا - لا ينطبق","توثيق الإعفاءات من تحديد السبب الذي يسمح بمعالجة البيانات الشخصية حيث يقتضي الأمر وفقًا المبادئ التوجيهية ذات الصلة المنشورة في قبل شؤون الحوكمة والضمان السيبراني الوطني.\nملحوظة تتوفر الإعفاءات من المادة ٤ للمراقبين بموجب المادة ١٨ في ظروف معينة."]
[null,5,"- Competent Authority Exemptions Guidelines for Regulated Entities\n\n- Controller Exemptions Guidelines for Regulated Entities","الاعفاءات","هل لدى مؤسستكم إجراءات معمول بها لتحديد وتوثيق أي استثناءات بموجب المادتين ١٨ و / أو  ١٩؟",{"$f":"B16","v":5},"5أ","أ",{"$f":"I13","v":"لا - لم يكتمل بعد"},"o القيام بوضع تدابير لتحديد وتوثيق الإعفاءات من بعض متطلبات قانون حماية خصوصية البيانات الشخصية (PDPPL) بموجب المادة ١٨ و / أو  ١٩ قبل معالجة البيانات الشخصية عبر المؤسسة."]
[null,null,null,null,null,{"$f":"B16","v":5},"5ب","ب","نعم - تم بنجاح","o التأكد من أن الإعفاءات الموثقة بموجب المادة ١٨ و / أو  ١٩ المحددة بالفعل دقيقة ويتم مراجعتها بشكل مستمر.\no الاحتفاظ بسجل خاص لهذه الإعفاءات إذا كانت المؤسسة جهة مختصة تعتمد على الإعفاءات بموجب المادة ١٩.\nملحوظة تتطلب المادة ١٩ من الجهات المختصة توثيق والاحتفاظ بسجل خاص لهذه الإعفاءات."]
[null,null,null,null,null,{"$f":"B16","v":5},"5ج","ج","لا - لا ينطبق","o توثيق الاستدلال لسبب عدم الانطباق. إذا لم تكن متأكدًا من إمكانية التطبيق ، فيرجى زيارة الموقع الإلكتروني لشؤون الحوكمة والضمان السيبراني الوطني ومراجعة المبادئ التوجيهية المنشورة ذات الصلة."]
[null,6,"- Permitted Reasons Guidelines for Regulated Entities","الأسباب التي تسمح بمعالجة البيانات الشخصية","حيث يتم تحديد \"الموافقة الصريحة\" على أنها السبب الذي يسمح بمعالجة البيانات الشخصية، هل لدى مؤسستكم عملية ثابتة لطلب وتسجيل الموافقة؟",{"$f":"B19","v":6},"6أ","أ",{"$f":"I16","v":"لا - لم يكتمل بعد"},"o توثيق العمليات التي تعتمد على الموافقةالصريحة كسبب يسمح بمعالجة البيانات الشخصية.\no التحقق من أن الموافقة هي أنسب الأسباب التي تسمح بمعالجة البيانات الشخصية.\noالامتثال للمبادئ التوجيهية المنشورة من قبل شؤون الحوكمة والضمان السيبراني الوطني ومتطلبات قنون حماية خصوصية البيانات الخصية (PDPPL) التي تشمل ما يلي:\n   - تحديد أسباب المعالجة وكيفية معالجة البيانات الشخصية.\n   - توثيق أي مؤسسات أطرف ثالثة ذات صلة بهذه الموافقة.\n   - إتاحة خيارات للسماح للأفراد بالموافقة بشكل منفصل على أنواع مختلفة من المعالجة حيثما كان ذلك مناسبًا.\n   - إخبار الأفراد أنهم قادرون على سحب موافقتهم في أي وقت وتوضيح كيفية القيام بذلك."]
[null,null,null,null,null,{"$f":"B19","v":6},"6ب","ب","نعم - تم بنجاح","رصد العمليات التي تعتمد على الموافقة كسبب يسمح بمعالجة البيانات الشخصية وتبقى قيد المراجعة"]
[null,null,null,null,null,{"$f":"B19","v":6},"6ج","ج","لا - لا ينطبق","o توثيق الاستدلال لسبب عدم الانطباق. إذا لم تكن متأكدًا من إمكانية التطبيق ، فيرجى زيارة الموقع الإلكتروني لشؤون الحوكمة والضمان السيبراني الوطني ومراجعة المبادئ التوجيهية المنشورة ذات الصلة."]
[null,7,"- Special Nature Processing Guidelines for Regulated Entities ","معالجة البيانات الشخصية ذات الطبيعة الخاصة","هل تلتزم مؤسستكم بمتطلبات معالجة \"البيانات الشخصية ذات الطبيعة الخاصة؟\"\n\n* بموجب قانون حماية خصوصية البيانات الشخصية، فإن البيانات الشخصية ذات الطبيعة الخاصة هي:\n- الأصل العرقي\n- بيانات الأطفال الشخصية\n- الحالة الصحية أو الجسدية أو النفسية\n- الدين\n- الحالة الزوجية\n- الجرائم الجنائية\n- البيانات الحيوية",{"$f":"B22","v":7},"7أ","أ",{"$f":"I19","v":"لا - لم يكتمل بعد"},"o تحديد وتوثيق جميع البيانات الشخصية ذات الطبيعة الخاصة التي يتم معالجتها.\no تحديد وتوثيق الأسباب التي تسمح بمعالجة البيانات الشخصية ذات الطبيعة الخاصة، أو الإعفاء من هذا الشرط.\no تحديد وتوثيق سبب إضافي لكل نشاط ينطوي على معالجة البيانات الشخصية ذات الطبيعة الخاصة.\no إجراء تحليل تأثير حماية خصوصية البيانات (DPIA) على الأنشطة التي تنطوي على معالجة البيانات الشخصية ذات الطبيعة الخاصة.\no الحصول على إذن من شؤون الحوكمة والضمان السيبراني الوطني للقيام بأنشطة المعالجة التي تنطوي على معالجة البيانات الشخصية ذات الطبيعة الخاصة."]
[null,null,null,null,null,{"$f":"B22","v":7},"7ب","ب","نعم - تم بنجاح","o مراقبة متطلبات \"البيانات الشخصية ذات الطبيعة الخاصة\" وإبقائها قيد المراجعة."]
[null,null,null,null,null,{"$f":"B22","v":7},"7ج","ج","لا - لا ينطبق","o توثيق الاستدلال لسبب عدم الانطباق. إذا لم تكن متأكدًا من إمكانية التطبيق ، فيرجى زيارة الموقع الإلكتروني لشؤون الحوكمة والضمان السيبراني الوطني ومراجعة المبادئ التوجيهية المنشورة ذات الصلة."]
[null,8,"- Permitted Reasons Guidelines for Regulated Entities","الأسباب التي تسمح بمعالجة البيانات الشخصية","أين يتم تحديد \"المصالح المشروعة\" على أنها السبب الذي يسمح بمعالجة البيانات الشخصية هل قمتم بإجراء     Legitimate Interest Assessment (تقييم المصالح المشروعة) وفقًا للمبادئ التوجيهية لشؤون الحوكمة والضمان السيبراني الوطني؟",{"$f":"B25","v":8},"8أ","أ",{"$f":"I22","v":"لا - لم يكتمل بعد"},"o توثيق العمليات التي تعتمد على المصلحة المشروعة كسبب يسمح بمعالجة البيانات الشخصية لمعالجة البيانات الشخصية وإجراء مثل هذه التقييمات.\no تحقق من أن المصلحة المشروعة هي أنسب الأسباب التي تسمح بمعالجة البيانات الشخصية بها للمعالجة."]
[null,null,null,null,null,{"$f":"B25","v":8},"8ب","ب","نعم - تم بنجاح","o التأكد من أن العملية التي تطبقها تشمل جميع المتطلبات على النحو المنصوص عليه في المبادئ التوجيهية المنشورة من قبل شؤون الحوكمة والضمان السيبراني الوطني لتنفيذ (تقييم المصالح المشروعة) Legitimate Interest Assessments."]
[null,null,null,null,null,{"$f":"B25","v":8},"8ج","ج","لا - لا ينطبق","o توثيق الاستدلال لسبب عدم الانطباق. إذا لم تكن متأكدًا من إمكانية التطبيق، فيرجى زيارة الموقع الإلكتروني لشؤون الحوكمة والضمان السيبراني الوطني ومراجعة المبادئ التوجيهية المنشورة ذات الصلة."]
[null,9,"- Individuals’ Rights Guidelines for Regulated Entities\n\n- Individuals’ Rights Guidelines for Individuals","حقوق الأفراد","هل لدى مؤسستكم الإجراءات المعمول بها لتمكين الأفراد من ممارسة حقوقهم على النحو المنصوص عليه في قانون حماية خصوصية البيانات الشخصية (PDPPL)؟\n\n* الحقوق هي كما يلي:\nالحق في حماية البيانات الشخصية ومعالجتها بشكل مشروع؛\n الحق في سحب الموافقة السابقة على معالجة البيانات الشخصية؛\nحق الاعتراض؛\nحق الحذف؛\nحق طلب تصحيح البيانات الشخصية؛\nحق الإخطار بمعالجة البيانات الشخصية؛\nحق الإخطار بأي إفشاء بيانات شخصية غير دقيقة؛\nحق في الوصول للبيانات الشخصية؛",{"$f":"B28","v":9},"9أ","أ",{"$f":"I25","v":"لا - لم يكتمل بعد"},"o وضع إجراءات لتمكين الأفراد من ممارسة كل حقوقهم على بياناتهم الشخصية التي تتم معالجتها. لمزيد من المعلومات حول المتطلبات، يرجى الاطّلاع إلى المبادئ التوجيهية التابعة لشؤون الحوكمة والضمان السيبراني الوطني المنشورة."]
[null,null,null,null,null,{"$f":"B28","v":9},"9ب","ب","نعم - تم بنجاح","o الحفاظ على تدابير لتمكين الأفراد من ممارسة كل من حقوقهم على بياناتهم الشخصية التي تتم معالجتها وتبقى قيد المراجعة. لمزيد من المعلومات حول المتطلبات ، يرجى الرجوع إلى إرشادات شؤون الحوكمة والضمان السيبراني الوطني المنشورة."]
[null,null,null,null,null,{"$f":"B28","v":9},"9ج","ج","لا - لا ينطبق","o توثيق الاستدلال لسبب عدم الانطباق. إذا لم تكن متأكدًا من إمكانية التطبيق، فيرجى زيارة الموقع الإلكتروني لشؤون الحوكمة والضمان السيبراني الوطني ومراجعة المبادئ التوجيهية المنشورة ذات الصلة."]
[null,10,"- Personal Data Management System (PDMS) Checklist for Regulated Entities\n\n*Items contained within the Checklist refer to further guidelines which contain full requirements ","الحوكمة","هل لدى مؤسستكم سياسات محددة ومعتمدة تم نشرها عن معالجة البيانات الشخصية وهل يتم مراقبة الامتثال عبر المؤسسة؟",{"$f":"B31","v":10},"10أ","أ",{"$f":"I28","v":"لا - لم يكتمل بعد"},"o إنشاء إطار سياسة وتنفيذ السياسات المطلوبة للامتثال لمتطلبات قانون حماية خصوصية البيانات الشخصية (PDPPL).\no ضمان تعريف السياسات بشكل صحيح وتحتوي على معلومات موجزة وواضحة."]
[null,null,null,null,null,{"$f":"B31","v":10},"10ب","ب","نعم - تم بنجاح","o مراقبة الوثائق والسياسات الموجودة المتعلقة بمعالجة البيانات الشخصية وإبقائها قيد المراجعة.\no التأكد من أن يتم نشر هذه الوثائق عبر المؤسسة."]
[null,null,null,null,null,{"$f":"B31","v":10},"10ج","ج","لا - لا ينطبق","o توثيق الاستدلال لسبب عدم الانطباق. إذا لم تكن متأكدًا من إمكانية التطبيق، فيرجى زيارة الموقع الإلكتروني لشؤون الحوكمة والضمان السيبراني الوطني ومراجعة المبادئ التوجيهية المنشورة ذات الصلة."]
[null,11,"- Principles of Data Privacy Guidelines for Regulated Entities","الحوكمة","هل تمتلك مؤسستكم إطار عمل للحوكمة يحدد بوضوح الأدوار والمسؤوليات فيما يتعلق بحماية خصوصية البيانات؟",{"$f":"B34","v":11},"11أ","أ",{"$f":"I31","v":"لا - لم يكتمل بعد"},"o إعداد نموذج حوكمة فعال عبر المؤسسة يشمل جميع أصحاب المصلحة المعنيين. يجب أن يأخذ هذا النموذج في الاعتبار الأبعاد الرئيسية المختلفة للمؤسسة بما في ذلك الأشخاص والعمليات والتكنولوجيا."]
[null,null,null,null,null,{"$f":"B34","v":11},"11ب","ب","نعم - تم بنجاح","o مراجعة نموذج الحوكمة الحالي المعمول به والتأكد من أنه يشمل جميع تفويضات حماية خصوصية البيانات كما هو مطلوب في قانون حماية خصوصية البيانات الشخصية (PDPPL)."]
[null,null,null,null,null,{"$f":"B34","v":11},"11ج","ج","لا - لا ينطبق","o توثيق الاستدلال لسبب عدم الانطباق. إذا لم تكن متأكدًا من إمكانية التطبيق، فيرجى زيارة الموقع الإلكتروني لشؤون الحوكمة والضمان السيبراني الوطني ومراجعة المبادئ التوجيهية المنشورة ذات الصلة."]
[null,12,"- Principles of Data Privacy Guidelines for Regulated Entities","التدريب والتوعية","هل تمتلك مؤسستكم عملية لضمان إجراء التدريب والتوعية فيما يخص حماية خصوصية البيانات عبر المؤسسة؟",{"$f":"B37","v":12},"12أ","أ",{"$f":"I34","v":"لا - لم يكتمل بعد"},"إعداد برنامج تدريب وتوعية فيما يتعلق بحماية خصوصية البيانات والتأكد من إجرائه وتحديثه بشكل دوري."]
[null,null,null,null,null,{"$f":"B37","v":12},"12ب","ب","نعم - تم بنجاح","o التأكد من أن برنامج التدريب الذي يتم إعداده يوفر تدريبًا عامًا وخاصًا على حماية خصوصية البيانا  وأمن المعلومات لجميع الموظفين.\no رصد وتتبع برنامج التدريب والتوعية والتصعيد عند الضرورة. يوصى بمراجعة وتحديث محتوى التدريب على حماية  خصوصية البيانات وأمن المعلومات على أساس سنوي أو حسب الحاجة من قبل الموظفين المناسبين."]
[null,null,null,null,null,{"$f":"B37","v":12},"12ج","ج","لا - لا ينطبق","o توثيق الاستدلال لسبب عدم الانطباق. إذا لم تكن متأكدًا من إمكانية التطبيق، فيرجى زيارة الموقع الإلكتروني لشؤون الحوكمة والضمان السيبراني الوطني ومراجعة المبادئ التوجيهية المنشورة ذات الصلة."]
[null,13,"- Personal Data Management System (PDMS) Checklist for Regulated Entities\n\n- Controller and Processor Guidelines for Regulated Entities","الاتفاقات مع الجهات الخارجية","هل لدى مؤسستكم عقد مكتوب مع معالجي البيانات الذين يعالجون البيانات الشخصية نيابة عنكم، بما في ذلك متطلبات استخدام معالجي البيانات من الباطن؟",{"$f":"B40","v":13},"13أ","أ",{"$f":"I37","v":"لا - لم يكتمل بعد"},"o مراجعة جميع أنشطة المعالجة لتحديد الجهات الخارجية التي تعالج البيانات ومعالجي البيانات من الباطن (إن وجد).\no التأكد من وجود عقد مكتوب مع كل طرف ثالث ومعالج وفقًا لمتطلبات قانون حماية خصوصية البيانات الشخصية (PDPPL).\no التأكد من استيفاء متطلبات الامتثال حول معالجي البيانات من الباطن وفقًا لـقانون حماية خصوصية البيانات الشخصية (PDPPL). "]
[null,null,null,null,null,{"$f":"B40","v":13},"13ب","ب","نعم - تم بنجاح","o مراجعة جميع العقود القائمة مع جهات خارجية للتأكد من أنها تتوافق مع متطلبات قانون حماية خصوصية البيانات الشخصية (PDPPL)."]
[null,null,null,null,null,{"$f":"B40","v":13},"13ج","ج","لا - لا ينطبق","o توثيق الاستدلال لسبب عدم الانطباق. إذا لم تكن متأكدًا من إمكانية التطبيق، فيرجى زيارة الموقع الإلكتروني لشؤون الحوكمة والضمان السيبراني الوطني ومراجعة المبادئ التوجيهية المنشورة ذات الصلة."]
[null,14,"- Data Privacy Impact Assessment (DPIA) Guidelines for Regulated Entities","تحليل تأثير حماية خصوصية الباينات (DPIA)","هل هناك إطار رسمي وموثق لإجراء وإدارة تحليلات تأثير حماية خصوصية البيانات (DPIAs) عبر المؤسسة؟\n\n*تحليل تأثير حماية خصوصية البيانات (DPIA) هي تقييم لتحديد مخاطر معالجة البيانات الشخصية للأفراد وتخفيف مخاطر المعالجة إلى مستوى مقبول. وهو يشبه تقييم المخاطر، ويجب أن يتم إجراؤه باستمرار بطريقة موحدة عبر المؤسسة.",{"$f":"B43","v":14},"14أ","أ",{"$f":"I40","v":"لا - لم يكتمل بعد"},"o وضع إطار لإجراء تحليلات تأثير حماية خصوصية البيانات (DPIAs)، بما في ذلك المسؤوليات والمساءلة في الامتثال لمتطلبات قانون حماية خصوصية البيانات الشخصية (PDPPL). يرجى الاطّلاع إلى المبادئ التوجيهية المنشورة من قبل شؤون الحوكمة والضمان السيبراني الوطني لمزيد من المعلومات حول كيفية إجراء تحليل تأثير حماية خصوصية البيانات (DPIA)."]
[null,null,null,null,null,{"$f":"B43","v":14},"14ب","ب","نعم - تم بنجاح","o التأكد من أن تحليل تأثير حماية خصوصية البيانات (DPIA) التي يتم تنفيذها تلبي متطلبات قانون حماية خصوصية البيانات الشخصية (PDPPL) كما هو موضح في المبادئ التوجيهية المنشورة من قبل شؤون الحوكمة والضمان السيبراني الوطني.\no التأكد من أن إدارة تحليل تأثير حماية خصوصية البيانات (DPIA) يتم استخدامها في جميع الأوقات ذات الصلة بما في ذلك على سبيل المثال: \n  - تنفيذ أو تحديثات أنظمة تقنية المعلومات؛ \n   - التغييرات على العمليات القائمة؛ \n   - التغييرات على المنتجات أو الخدمات."]
[null,null,null,null,null,{"$f":"B43","v":14},"14ج","ج","لا - لا ينطبق","o توثيق الاستدلال لسبب عدم الانطباق. إذا لم تكن متأكدًا من إمكانية التطبيق، فيرجى زيارة الموقع الإلكتروني لشؤون الحوكمة والضمان السيبراني الوطني ومراجعة المبادئ التوجيهية المنشورة ذات الصلة."]
[null,15,"- Cross-Border Data flows Permit Request Form for Regulated Entities (English)","تدفق البيانات عبر الحدود","هل تضمن مؤسستك مستوى مناسب من حماية الخصوصية لأية بيانات شخصية يعالجها الآخرون نيابة عنكم يتم نقلها خارج دولة قطر؟",{"$f":"B46","v":15},"15أ","أ",{"$f":"I43","v":"لا - لم يكتمل بعد"},"o مراجعة جميع أنشطة المعالجة لتحديد الأنشطة التي تشمل نقل البيانات الشخصية خارج دولة قطر.\no ضمان مستويات كافية من حماية الخصوصية لحماية هذه التحويلات امتثالا لمتطلبات قانون حماية خصوصية البيانات الشخصية (PDPPL). لمزيد من المعلومات حول تدفقات البيانات عبر الحدود، يرجى الاطّلاع إلى  المبادئ التوجيهية المنشورة من قبل شؤون الحوكمة والضمان السيبراني الوطني."]
[null,null,null,null,null,{"$f":"B46","v":15},"15ب","ب","نعم - تم بنجاح","o مراقبة متطلبات الضمانات الكافية لنقل البيانات الشخصية خارج دولة قطر وإبقائها قيد المراجعة."]
[null,null,null,null,null,{"$f":"B46","v":15},"15ج","ج","لا - لا ينطبق","o توثيق الاستدلال لسبب عدم الانطباق. إذا لم تكن متأكدًا من إمكانية التطبيق، فيرجى زيارة الموقع الإلكتروني لشؤون الحوكمة والضمان السيبراني الوطني ومراجعة المبادئ التوجيهية المنشورة ذات الصلة."]
[null,16,"- Personal Data Breach Notifications Guidelines for Regulated Entities ","خروقات البيانات","هل لدى مؤسستكم عملية رسمية وموثقة لتحديد الحوادث والاختراقات المتعلقة بحماية خصوصية البيانات والاستجابة لها؟",{"$f":"B49","v":16},"16أ","أ",{"$f":"I46","v":"لا - لم يكتمل بعد"},"o إعداد وتوثيق عملية رسمية ستسمح للموظفين عبر المؤسسة بالتعرف على اختراقات البيانات والإبلاغ عنها بمجرد علمهم بها وفقًا لمتطلبات قانون حماية خصوصية البيانات الشخصية (PDPPL)."]
[null,null,null,null,null,{"$f":"B49","v":16},"16ب","ب","نعم - تم بنجاح","o رصد مخاطر الحوادث، ونوعها، وعددها وتكلفتها للسماح بتخطيط أكثر كفاءة وتقليل الحوادث من خلال الدروس المستفادة وإبقائها قيد المراجعة. لمزيد من المعلومات حول خروقات البيانات، يرجى الرجوع إلى الإطّلاع على المبادئ التوجيهية المنشورة من قبل شؤون الحوكمة والضمان السيبراني الوطني."]
[null,null,null,null,null,{"$f":"B49","v":16},"16ج","ج","لا - لا ينطبق","o توثيق الاستدلال لسبب عدم الانطباق. إذا لم تكن متأكدًا من إمكانية التطبيق، فيرجى زيارة الموقع الإلكتروني لشؤون الحوكمة والضمان السيبراني الوطني ومراجعة المبادئ التوجيهية المنشورة ذات الصلة."]
[null,17,"- Data Privacy by Design and by Default Guidelines","حماية خصوصية البيانات المتضمنة بالتصميم","هل يوجد إطار عمل لتضمين حماية خصوصية البيانات المتضمنة بالتصميم والمتضمنة افتراضياً داخل المؤسسة؟",{"$f":"B52","v":17},"17أ","أ",{"$f":"I49","v":"لا - لم يكتمل بعد"},"o وضع إطار عمل لضمان قدرة المؤسسة على تضمين حماية خصوصية البيانات المتضمنة بالتصميم والمتضمنة افتراضياً عند اتخاذ القرارات المتعلقة بالبيانات الشخصية ومعالجتها."]
[null,null,null,null,null,{"$f":"B52","v":17},"17ب","ب","نعم - تم بنجاح","o التأكد من مراجعة جميع حماية خصوصية البيانات المتضمنة التصميم على أساس مستمر لضمان التحسين المستمر للإجراءات المناسبة."]
[null,null,null,null,null,{"$f":"B52","v":17},"17ج","ج","لا - لا ينطبق","o توثيق الاستدلال لسبب عدم الانطباق. إذا لم تكن متأكدًا من إمكانية التطبيق، فيرجى زيارة الموقع الإلكتروني لشؤون الحوكمة والضمان السيبراني الوطني ومراجعة المبادئ التوجيهية المنشورة ذات الصلة."]
[null,18,"- Data Privacy by Design and by Default Guidelines","أمن المعلومات","هل تقوم مؤسستكم بتطبيق الاحتياطات الإدارية والتقنية والمالية المناسبة وفقًا لمتطلبات قانون حماية خصوصية البيانات الشخصية (PDPPL)؟",{"$f":"B55","v":18},{"$f":"CONCATENATE(F55,H55)","v":"18أ"},"أ",{"$f":"I52","v":"لا - لم يكتمل بعد"},"o وضع إجراءات أمنية تقنية ومادية لحماية البيانات الشخصية من الفقد أو التلف أو التعديل أو الكشف أو الوصول أو الاستخدام غير القانوني أو العرضي بما يتماشى مع متطلبات قانون حماية خصوصية البيانات الشخصية (PDPPL) وسياسات ومعايير أمن المعلومات الدولية القطرية."]
[null,null,null,null,null,{"$f":"B55","v":18},"18ب","ب","نعم - تم بنجاح","o ضمان الامتثال لمتطلبات قانون حماية خصوصية البيانات الشخصية (PDPPL) والسياسات ومعايير أمن المعلومات الدولية القطرية."]
[null,null,null,null,null,{"$f":"B55","v":18},"18ج","ج","لا - لا ينطبق","o توثيق الاستدلال لسبب عدم الانطباق. إذا لم تكن متأكدًا من إمكانية التطبيق، فيرجى زيارة الموقع الإلكتروني لشؤون الحوكمة والضمان السيبراني الوطني ومراجعة المبادئ التوجيهية المنشورة ذات الصلة."]
[null,19,"- Permitted Reasons Guidelines for Regulated Entities","المواقع الإلكترونية الموجهة للأطفال","هل تأخذ مؤسستكم في الاعتبار متطلبات قانون حماية خصوصية البيانات الشخصية (PDPPL) لمالكي أو مشغلي المواقع الإلكترونية الموجهة للأطفال؟",{"$f":"B58","v":19},{"$f":"CONCATENATE(F58,H58)","v":"19أ"},"أ",{"$f":"I55","v":"لا - لم يكتمل بعد"},"o تنفيذ متطلبات قانون حماية خصوصية البيانات الشخصية (PDPPL) لأصحاب أو مشغلي المواقع الإلكترونية الموجهة للأطفال:\n   - نشر إشعار خصوصية للأطفال.\n   - الحصول على موافقة صريحة من ولي أمر الطفل الذي تتم معالجة بياناته الشخصية.\n   - تزويد ولي الأمر بوصف للبيانات الشخصية، بالإضافة الى الغرض من المعالجة. \n   - منح الطفل الحق في حذف أو إزالة أو تعليق معالجة البيانات الشخصية بناءً على طلب ولي الأمر. \n   - التأكد من أن مشاركة الطفل في لعبة أو جائزة ترويجية أو أي نشاط آخر ليست مشروطة بتوفير الطفل للبيانات الشخصية بما يفوق ما هو ضروري للمشاركة في هذا النشاط."]
[null,null,null,null,null,{"$f":"B58","v":19},"19ب","ب","نعم - تم بنجاح","o مراقبة الامتثال لمتطلبات مالكي ومشغلي المواقع الإلكترونية الموجهة للأطفال والتي تظل قيد المراجعة. لمزيد من المعلومات ، يرجى الرجوع إلى إرشادات شؤون الحوكمة والضمان السيبراني الوطني المنشورة حول إشعارات الخصوصية وحقوق الأفراد."]
[null,null,null,null,null,{"$f":"B58","v":19},"19ج","ج","لا - لا ينطبق","o توثيق الاستدلال لسبب عدم الانطباق. إذا لم تكن متأكدًا من إمكانية التطبيق، فيرجى زيارة الموقع الإلكتروني لشؤون الحوكمة والضمان السيبراني الوطني ومراجعة المبادئ التوجيهية المنشورة ذات الصلة."]
[null,20,"- Complaints Guidelines for Regulated Entities\n\n- Complaints Guidelines for Individuals","الشكاوى","هل تمتلك مؤسستكم نظامًا لضمان قدرة الأفراد على طرح المخاوف أو الشكاوى إلى المؤسسة؟",{"$f":"B61","v":20},{"$f":"CONCATENATE(F61,H61)","v":"20أ"},"أ",{"$f":"I58","v":"لا - لم يكتمل بعد"},"o وضع إجراءات للتعامل مع الشكاوى المقدمة من قبل الأفراد، ووضع عملية لتسهيل ذلك وتحديد جهة الاتصال المسؤولة للتعامل مع هذه الشكاوى والاستجابة في الإطار الزمني المطلوب."]
[null,null,null,null,null,{"$f":"B61","v":20},"20ب","ب","نعم - تم بنجاح","o مراقبة الامتثال لمتطلبات الشكاوى من قبل الأفراد وإبقائها قيد المراجعة."]
[null,null,null,null,null,{"$f":"B61","v":20},"20ج","ج","لا - لا ينطبق","o توثيق الاستدلال لسبب عدم الانطباق. إذا لم تكن متأكدًا من إمكانية التطبيق، فيرجى زيارة الموقع الإلكتروني لشؤون الحوكمة والضمان السيبراني الوطني ومراجعة المبادئ التوجيهية المنشورة ذات الصلة."]